Cogmind - Beta 15 @@@ ROGUE MODE // 2025.10.17 @ 22:26:43 Player: theMouse Result: Destroyed by S-10 Pest with Light Assault Rifle Performance ------------- Evolutions (0) 0 Regions Visited (3) 600 Robots Destroyed (14) 70 Value Destroyed (411) 411 Prototype IDs (2) 40 Alien Tech Used (0) 0 Bonus (0) 0 TOTAL SCORE: 1121 Bonus ------- None Cogmind --------- Core Integrity 0/250 Matter 300/300 Energy 99/100 System Corruption 16% Temperature Cool (0) Movement Core (50) Location -8/Recycling Parts ------- > --- POWER (1) -------- (None) > --- PROPULSION (2) --- (None) > --- UTILITY (2) ------ (None) > --- WEAPON (2) ------- (None) > --- INVENTORY (5) ---- Light Ion Engine Improved Sensor Array Terrain Scan Processor Melee Analysis Suite Peak State ------------ > --- POWER ------------ Improved Ion Engine > --- PROPULSION ------- Spiked Treads Makeshift Leg > --- UTILITY ---------- Small Storage Unit Visual Processing Unit > --- WEAPON ----------- Flak Cannon Katana > --- INVENTORY -------- Improved Heat Sink Subdweller Optics Terrain Scan Processor Melee Analysis Suite Improved Light Armor Plating Shock Rifle Shock Rifle Subdweller Beam Cannon [Rating: 19] Favorites ----------- Power Light Ion Engine Engine Light Ion Engine Propulsion Aluminum Leg Treads Spiked Treads Leg Aluminum Leg Wheel Subdweller Monowheel Utility Small Storage Unit Storage Small Storage Unit Processor Visual Processing Unit Protection Light Armor Plating Weapon Particle Gun Energy Gun Particle Gun Ballistic Gun Light Assault Rifle Ballistic Cannon Flak Cannon Slashing Weapon Katana Build | -11 -10 -10 -8 ------- Run | Yrd Mat Sub Rec Slots Evolved . | . . . . Power . | . . . . Propulsion . | . . . . Utility . | . . . . Weapon . | . . . . Parts Attached 22 | . 5 6 11 Power 5 | . 2 1 2 Engine 5 | . 2 1 2 Core . | . . . . Reactor . | . . . . Propulsion 6 | . . 4 2 Treads 1 | . . 1 . Leg 3 | . . 1 2 Wheel 2 | . . 2 . Hover . | . . . . Flight . | . . . . Utility 4 | . 1 1 2 Device . | . . . . Storage 2 | . . . 2 Processor 1 | . . 1 . Hackware . | . . . . Protection 1 | . 1 . . Artifact . | . . . . Weapon 7 | . 2 . 5 Energy Gun 5 | . 2 . 3 Energy Cannon . | . . . . Ballistic Gun . | . . . . Ballistic Cannon 1 | . . . 1 Launcher . | . . . . Special Weapon . | . . . . Impact Weapon . | . . . . Slashing Weapon 1 | . . . 1 Piercing Weapon . | . . . . Special Melee Weapon . | . . . . Unidentified Prototypes . | . . . . Parts Lost 12 | . . 1 11 Power 2 | . . . 2 Propulsion 4 | . . 1 3 Utility 2 | . . . 2 Weapon 4 | . . . 4 Highest Loss Streak 7 | . . 1 7 To Critical Strikes . | . . . . Average Backups 7 | . 7 7 7 Power . | . 1 1 . Propulsion . | . 2 . . Utility 3 | . 1 3 3 Weapon 2 | . 1 2 2 Tool/Special . | . . . . Unused Backups 24 | . 11 4 9 Power 1 | . . . 1 Propulsion 9 | . 7 2 . Utility 8 | . 1 1 6 Weapon 5 | . 3 . 2 Tool/Special 1 | . . 1 . Average Slot Usage (%) 97 | . 93 99 92 Engine 13 | . 14 14 13 Treads 4 | . . 3 9 Leg 20 | . 28 21 13 Wheel 2 | . . 2 . Storage 13 | . 14 14 13 Processor 11 | . . 11 13 Protection 2 | . 8 2 . Energy Gun 24 | . 17 28 8 Ballistic Cannon 1 | . . . 7 Slashing Weapon 1 | . . . 10 Peak Build Rating 19 | . 10 13 19 Average Rating 11 | . 7 11 16 On Entrance 8 | 6 6 10 11 Naked Turns . | . . . . Heaviest Build 20 | 10 17 17 20 Greatest Support 40 | 20 20 40 40 Greatest Overweight (x) 2 | . . . 2 Average Overweight (x) . | . . . . Largest Inventory Capacity 25 | . 8 8 25 Average Capacity 7 | . 8 8 7 Most Carried 8 | . 8 8 8 Average Carried 7 | . 7 7 7 Final Capacity 8 | 8 8 8 5 Final Carried 8 | 6 8 7 4 Class Distribution -------------------- 97% | Mutant Dominant Class ---------------- Mutant | -10/Materials Mutant | -10/Subcaves Mutant | -8/Recycling Resources | -11 -10 -10 -8 ----------- Run | Yrd Mat Sub Rec Matter Collected 430 | 191 59 70 110 Remotely . | . . . . Salvage Created 534 | . . 233 301 Parts 29 | . . 17 12 Haulers Intercepted . | . . . . Recyclers Shooed 1 | . . . 1 Parts Field Recycled . | . . . . Retrieved Matter . | . . . . Parts Self-Destructed 9 | . . 9 . Prevented . | . . . . Kills | -11 -10 -10 -8 ------- Run | Yrd Mat Sub Rec Combat Hostiles Destroyed 11 | . . 8 3 Melee 2 | . . . 2 Guns 8 | . . 8 . Classes Destroyed 5 | . . 3 2 Recycler 1 | . . . 1 Turret 2 | . . 2 . Swarmer 4 | . . 4 . Sentry 3 | . . . 3 Subdweller 4 | . . 4 . Best Kill Streak 6 | . . 6 3 Combat Bots Only 4 | . . 4 2 Max Kills in Single Turn 2 | . . 2 1 Gunslinging 1 | . . 1 . Exploded . | . . . . Melee 1 | . . . 1 Uniques/NPCs Destroyed . | . . . . Combat | -11 -10 -10 -8 -------- Run | Yrd Mat Sub Rec Hostile Shots Fired 163 | . . 85 78 Missed 59 | . . 34 25 Hits 104 | . . 51 53 Melee 2 | . . . 2 Projectile 102 | . . 51 51 Critical Strikes 1 | . . 1 . Damage Taken 1700 | . . 606 1094 Core 251 | . . 90 161 Absorbed by Shields . | . . . . Core Remaining (%) 100 | 100 . . . Volleys Fired 48 | . . 47 1 Largest 2 | . . 2 2 Hottest 130 | . . 130 130 Shots Fired 96 | . . 94 2 Gun 96 | . . 94 2 Cannon . | . . . . Launcher . | . . . . Special . | . . . . Kinetic . | . . . . Thermal 96 | . . 94 2 Explosive . | . . . . Electromagnetic . | . . . . Robot Hit Streak 16 | . . 16 1 Robot Miss Streak 6 | . . 6 1 Penetration Max . | . . . . Secondary Targets 1 | . . 1 . Max Gunslinging Chain 1 | . . 1 . Shots Hit Robots 58 | . . 46 12 Core Hits 20 | . . 16 4 Critical Kills . | . . . . Critical Parts Destroyed . | . . . . Critical Strikes 5 | . . 5 . Burn 5 | . . 5 . Melee Attacks 41 | . . . 41 Impact . | . . . . Slashing 41 | . . . 41 Piercing . | . . . . Sneak Attacks 2 | . . . 2 Combat Hostiles . | . . . . Follow-up Attacks . | . . . . Damage Inflicted 1294 | . . 730 564 Guns 747 | . . 730 17 Cannons . | . . . . Explosions . | . . . . Melee 547 | . . . 547 Ramming . | . . . . Kinetic . | . . . . Thermal 747 | . . 730 17 Explosive . | . . . . Electromagnetic . | . . . . Impact . | . . . . Slashing 547 | . . . 547 Piercing . | . . . . Highest Corruption 11 | . . . 11 Average Corruption 11 | . . . 11 Corruption Purged . | . . . . Corruption Blocked . | . . . . Effects 1 | . . . 1 Parts Rejected 1 | . . . 1 Overload Shots . | . . . . Overflow Damage 125 | . . . 125 Projectiles . | . . . . Explosions . | . . . . Melee 125 | . . . 125 Knockbacks . | . . . . Impact . | . . . . Kinetic . | . . . . Secondary . | . . . . Self-Inflicted Damage . | . . . . Shots . | . . . . Rammed . | . . . . Targets Rammed . | . . . . Kicked . | . . . . Crushed . | . . . . Highest Temperature 117 | . . 117 87 Average Temperature 39 | . . 38 48 Received Heat Transfer 363 | . . 174 189 Siege Activations . | . . . . Martial Activations . | . . . . Shielding Activations . | . . . . Robots Disrupted . | . . . . Combat Hostiles . | . . . . Robots Corrupted . | . . . . Combat Hostiles . | . . . . Parts Fried . | . . . . Impact Corruptions . | . . . . Robots Melted . | . . . . Combat Hostiles . | . . . . Parts Melted 3 | . . 3 . Heat Transferred 2146 | . . 2109 37 Parts Sabotaged . | . . . . Parts Stolen . | . . . . Parts Stripped . | . . . . Power Chain Reactions . | . . . . Alert | -11 -10 -10 -8 ------- Run | Yrd Mat Sub Rec Maximum Alert Level . | . . . . Low Security (%) 100 | . 100 . 100 Level 1 . | . . . . Level 2 . | . . . . Level 3 . | . . . . Level 4 . | . . . . Level 5 . | . . . . High Security . | . . . . Max Security . | . . . . Peak Influence 45 | . . . 45 Initial . | . . . . Average 4 | . . . 6 Influence Increases 277 | . . 150 127 Destroy 0b10 Robot/C 180 | . . 120 60 Destroy 0b10 Robot/NC 15 | . . . 15 Successful Hack 9 | . . . 9 Disable Machine 15 | . . . 15 Destroy Structure 13 | . . . 13 Lose Combat Pursuer 45 | . . 30 15 Influence Decreases 277 | . . 150 127 Time Decay 277 | . . 150 127 Squads Dispatched . | . . . . Investigation . | . . . . Extermination . | . . . . Reinforcement . | . . . . Assault . | . . . . Garrison . | . . . . Intercept . | . . . . Searches Triggered . | . . . . Construction Impeded . | . . . . Haulers Reinforced . | . . . . Active Scanning Responses . | . . . . Cargo Convoy Interrupts . | . . . . Stealth | -11 -10 -10 -8 --------- Run | Yrd Mat Sub Rec Distress Signals 1 | . . . 1 Communications Jammed . | . . . . Distress Signals . | . . . . Times Spotted 30 | . 7 14 9 Peak Tracking Total 6 | . 5 6 6 Tactical Retreats 2 | . . 1 1 Traps | -11 -10 -10 -8 ------- Run | Yrd Mat Sub Rec Traps Triggered . | . . . . Indirectly . | . . . . Trap Hack Attempts . | . . . . Triggered . | . . . . Disarmed . | . . . . Reprogrammed . | . . . . Reused . | . . . . Traps Extracted . | . . . . Installed . | . . . . Triggered . | . . . . Machines | -11 -10 -10 -8 ---------- Run | Yrd Mat Sub Rec Machines Disabled 2 | . . 1 1 Max in Single Turn 1 | . . 1 1 Machines Repaired . | . . . . Machines Dismantled . | . . . . Machines Sabotaged . | . . . . Overloaded Fab Kills . | . . . . Hacking | -11 -10 -10 -8 --------- Run | Yrd Mat Sub Rec Machines Accessed 4 | . . 2 2 Terminals 2 | . . . 2 Fabricators . | . . . . Repair Stations . | . . . . Recycling Units . | . . . . Scanalyzers . | . . . . Garrison Access . | . . . . Total Hacks 12 | . . 3 9 Successful 9 | . . 3 6 Failed 3 | . . . 3 Catastrophic . | . . . . Database Lockouts . | . . . . Manual . | . . . . Terminals 9 | . . . 9 Fabricators . | . . . . Repair Stations . | . . . . Recycling Units . | . . . . Scanalyzers . | . . . . Garrison Access . | . . . . Terminal Hacks 9 | . . 3 6 Record 5 | . . 1 4 Robot Analysis 1 | . . . 1 Prototype ID Bank 1 | . . . 1 Open Door 1 | . . 1 . Release Object 1 | . . 1 . Fabricator Hacks . | . . . . Repair Station Hacks . | . . . . Recycling Unit Hacks . | . . . . Scanalyzer . | . . . . Garrison Access Hacks . | . . . . Unauthorized Hacks . | . . . . Terminals . | . . . . Fabricators . | . . . . Repair Stations . | . . . . Recycling Units . | . . . . Scanalyzers . | . . . . Garrison Access . | . . . . Data Cores Recovered . | . . . . Used . | . . . . Hacking Detections 2 | . . . 2 Full Trace Events 1 | . . . 1 Feedback Events . | . . . . Feedback Blocked . | . . . . Robot Schematics Acquired . | . . . . Robots Built . | . . . . Authchips . | . . . . Time . | . . . . Total Robot Build Rating . | . . . . Part Schematics Acquired . | . . . . Parts Built . | . . . . Authchips . | . . . . Time . | . . . . Total Part Build Rating . | . . . . Parts Repaired . | . . . . Time . | . . . . Parts Recycled . | . . . . Recycled Matter . | . . . . Retrieved Matter . | . . . . Retrieved Components . | . . . . Parts Scanalyzed . | . . . . Part Schematics Acquired . | . . . . Parts Damaged . | . . . . Bothacking | -11 -10 -10 -8 ------------ Run | Yrd Mat Sub Rec Used RIF Installer . | . . . . Robots Hacked . | . . . . Non-combat . | . . . . Combat . | . . . . Robot Hacks Applied . | . . . . Relay Couplers Released . | . . . . Fabnet Peak Effective % . | . . . . Robots Rewired . | . . . . Allies Hacked . | . . . . Hacks Repelled . | . . . . Allies | -11 -10 -10 -8 -------- Run | Yrd Mat Sub Rec Total Allies . | . . . . Largest Group . | . . . . Highest-Rated Group . | . . . . Highest-Rated Ally . | . . . . Total Orders . | . . . . Ally Attacks . | . . . . Total Damage . | . . . . Kills . | . . . . Allies Corrupted . | . . . . Allies Melted . | . . . . Intel | -11 -10 -10 -8 ------- Run | Yrd Mat Sub Rec Active Infowar (turns) 2873 | . . 2312 561 Optics 2873 | . . 2312 561 Robot Analysis Total 1 | . . . 1 Derelict Logs Recovered 1 | . . 1 . Drone Launches . | . . . . Drone Recoveries . | . . . . Exploration | -11 -10 -10 -8 ------------- Run | Yrd Mat Sub Rec Turns Passed 3567 | . 210 2783 574 Spaces Moved 2621 | 1 151 2170 299 Core 4 | . . . 4 Treads 156 | . . 101 55 Legs 2036 | 1 151 1644 240 Wheels 425 | . . 425 . Hover . | . . . . Flight . | . . . . Fastest Speed 50 | 120 120 110 50 Average Speed 122 | 120 120 119 143 Slowest Speed 160 | 120 120 160 160 Overloaded Moves . | . . . . Propulsion Burnouts . | . . . . Robots Hopped . | . . . . Potential Cave-ins 15 | . . . 15 Cave-ins Triggered 1 | . . . 1 Exploration Rate (%) 38 | 2 26 73 52 Regions Visited 3 Branch Regions 2 Pre-discovered Areas 1 | . . 1 . Known Exits Taken . | . . . . Unknown Exits Taken 3 | 1 1 1 . Scrap Searched 6 | . . 6 . Spaces Dug 28 | . . . 28 Terrain Destroyed 28 | . . . 28 Melee 28 | . . . 28 Projectile . | . . . . AOE . | . . . . Terrain Rammed . | . . . . Walls Destroyed . | . . . . Machines Disabled . | . . . . Actions | -11 -10 -10 -8 --------- Run | Yrd Mat Sub Rec Total 2826 | . 184 2260 382 Wait 33 | . 6 19 8 Move 2618 | . 150 2169 299 Hop . | . . . . Pick Up 34 | . 13 8 13 Fast Attach . | . . . . Attach 13 | . 4 3 6 Detach . | . . . . Swap 11 | . 1 4 6 Drop 26 | . 10 9 7 Fire 48 | . . 47 1 Melee 41 | . . . 41 Ram . | . . . . Kick . | . . . . Crush . | . . . . Escape Stasis . | . . . . Rewire 1 | . . . 1 Trap . | . . . . Miscellaneous 1 | . . 1 . Route ------- -11/Scrapyard -10/Materials (discovered 2 exits: [*Min] / *Sub) -10/Subcaves (discovered 3 exits: [*Mat] / *Rec / [*Scr]) -8/Recycling History --------- Turn | Location | Event 1 | -11/Scrapyard | Discovered new exit (range 0) 1 | -11/Scrapyard | Entered Materials 2 | -10/Materials | Met a group of wandering Federalists 99 | -10/Materials | Discovered new exit (range 16) 125 | -10/Materials | Discovered new exit (range 9) 211 | -10/Materials | Entered Subcaves 212 | -10/Subcaves | Continued accompanying wandering Federalists (4) 309 | -10/Subcaves | Build established: Mutant 499 | -10/Subcaves | A swath of the cavern ceiling suddenly collapsed 503 | -10/Subcaves | Disturbed a concealed Subdweller 627 | -10/Subcaves | Learned location of Zion (-7) 683 | -10/Subcaves | Released subatomizers from SUBCON Basin 772 | -10/Subcaves | Discovered new exit (range 14) 806 | -10/Subcaves | Shifting Twisted Machinery released Spk. Treads 807 | -10/Subcaves | Shifting Twisted Machinery released Battle Cannon 943 | -10/Subcaves | Discovered new exit (range 18) 2349 | -10/Subcaves | A swath of the cavern ceiling suddenly collapsed 2994 | -10/Subcaves | Entered Recycling 2995 | -8/Recycling | Met a Zionite searching for Scraptown 3108 | -8/Recycling | Lost 3 parts (1p2w) 3122 | -8/Recycling | Core integrity fell below 50% 3275 | -8/Recycling | Core integrity fell below 20% 3555 | -8/Recycling | Crushed by falling debris 3555 | -8/Recycling | System corruption reached 10% 3568 | -8/Recycling | Destroyed by S-10 Pest with Light Assault Rifle Last Messages --------------- 03555_ System corrupted by crushing effect (+4). 03555_ Sub. Beam Cannon crushed. 03560_ H-55 Commando springs to life. 03560_ Penetrated by Slug. 03560_ Mak. Leg destroyed. 03561_ S-10 Pest springs to life. 03561_ I-25 Savior springs to life. 03561_ B-36 Bruiser springs to life. 03562_ System corrupted: Shock Rifle rejected. 03562_ S-10 Pest springs to life. 03562_ B-36 Bruiser springs to life. 03562_ Attempting to rewire R-06 Scavenger. 03562_ R-06 Scavenger is broken beyond repair. 03563_ Penetrated by Slug. 03563_ Flak Cannon destroyed. 03566_ Penetrated by Slug. 03566_ R-06 Scavenger destroyed. 03566_ Acquired 5 matter. 03568_ Imp. Ion Engine destroyed. 03568_ System corrupted by crushing effect (+5). Map ----- +----------------------------------------------------+ | | | | | | | | | ????????????????????????????????????????????? | | ????????????????????????????????????????????? | | ????????????????????????????????????????????? | | ????????????????????????????????????????????? | | ????????????????????????????????????????????? | | ????????????????????????????????????????????? | | ????????????????????????????????????????????? | | ????????????????????????????????????????????? | | ????????????????????????????????????????????? | | ??????????????#########?????????????????????? | | ??????????????# #?????????????????????? | | ??????????????# #?????????????????????? | | #?????????????# #?????????????????????? | | #?????????????# ##????????????????????? | | #?????????????####+###!##???????????????????? | | #????????????????# #?#####??????????????????? | | #?????????????#### #??##[######?????????????? | | #?#############%## ##?# s #?????????????? | | #?# !# #?# h p g #?????????????? | | #?# + #?#rh !b!s#?????????????? | | ### # #?#usr%b!g#?????????????? | | "## #####?# @ua #?????????????? | | # #+#####+#######?????# k#?????????????? | | ##" #???# #???????????#]!i u #?????????????? | | ?## #???# #???????????#*=u #?????????????? | | ??# #???# #???????????##+######?????????????? | | ?????????????????????????????????? | | ??####??###?????????????????????????????????? | | ????????????????????????????????????????????? | | ????????????????????????????????????????????? | | ????????????????????????????????????????????? | | ????????????????????????????????????????????? | | ????????????????????????????????????????????? | | ????????????????????????????????????????????? | | ????????????????????????????????????????????? | | ????????????????????????????????????????????? | | ????????????????????????????????????????????? | | ????????????????????????????????????????????? | | ????????????????????????????????????????????? | | ????????????????????????????????????????????? | | ????????????????????????????????????????????? | | ????????????????????????????????????????????? | | ????????????????????????????????????????????? | | ????????????????????????????????????????????? | | ????????????????????????????????????????????? | | ????????????????????????????????????????????? | +----------------------------------------------------+ Best States ------------- Heat Dissipation 25 Energy Generation 12 Energy Capacity 265 Matter Stores 300 Matter Capacity 300 Sight Range 18 Terrain Scan Density 10 Armor Coverage 150 Evasion (%) 55 Recoil Reduction 1 Item Schematics ----------------- None Robot Schematics ------------------ None Fabricated ------------ Nothing Repaired ---------- Nothing Alien Tech Used ----------------- None Achievements -------------- None Challenges ------------ None Game ------ Seed OmegaDirtyClaw Manual? 0 Play Time 00:59:22 Cumulative 25.5 hours Start 2025.10.17 @ 19:11:30 End 2025.10.17 @ 22:26:43 Sessions 9 Manual Loads 0 Difficulty Rogue Special Mode None Game No. 31 Rogue 31 Adventurer 0 Explorer 0 Win Type - Total 0 Types 0/0/0/0/0/0/0/0/0/0 Lore% 3 Gallery% 18 Achievement% 14 Wizard Run 0 Options --------- Layout 1 ASCII 0 Keyboard 0 Movement Numpad Keybinds 0 Fullscreen 2 Font 32/SmallcapsGlow Map View 50x35 Zoom Use 0% Tactical HUD 1 Map Filters NONE Filters NONE Steam 1 RUN: 95fda912-ab3f-4d6a-98df-c6aef74d08b2